Cogmind - Beta 13 @@@ ROGUE MODE // 2024.04.03 @ 22:28:51 Player: _An Result: Destroyed by Y-72 Warden with Railgun Performance ------------- Evolutions (7) 3500 Regions Visited (11) 2200 Robots Destroyed (98) 490 Value Destroyed (3117) 3117 Prototype IDs (4) 80 Alien Tech Used (0) 0 Bonus (0) 0 TOTAL SCORE: 9387 Bonus ------- None Cogmind --------- Core Integrity 0/1300 Matter 290/300 Energy 99/100 System Corruption 5% Temperature Cool (11) Movement Hovering (60) Location -3/Research Parts ------- > --- POWER (2) -------- (None) > --- PROPULSION (6) --- Improved Antigrav System > --- UTILITY (11) ----- Advanced Terrain Scan Processor > --- WEAPON (2) ------- (None) > --- INVENTORY (5) ---- Light Antimatter Reactor Advanced Weight Redist. System Advanced Weight Redist. System Hardened Light Armor Plating System Guard Peak State ------------ > --- POWER ------------ Fission Core > --- PROPULSION ------- Improved Gravmag System Gravmag Array Gravmag Array Linear Gravjet > --- UTILITY ---------- Medium Storage Unit Advanced Weight Redist. System Advanced Terrain Scan Processor Targeting Computer Improved Targeting Computer Improved Targeting Computer Improved Targeting Computer Reaction Control System Layered Medium Armor Plating Layered Medium Armor Plating > --- WEAPON ----------- Phase Cannon Heavy Gauss Cannon > --- INVENTORY -------- Light Nuclear Core Light Angular Momentum Engine Micro Fission Core Antigrav System Weight Redist. System Improved Focal Shield Hacking Suite Hacking Suite System Shield Rocket Launcher [Rating: 79] Favorites ----------- Power Light Ion Engine Engine Light Ion Engine Power Core Fission Core Reactor Light Antimatter Reactor Propulsion Advanced Treads Treads Advanced Treads Leg Carbon-fiber Leg Wheel Compact Wheel Hover Unit Gravmag Array Flight Unit Xenon Bombardment Thruster Utility Layered Medium Armor Plating Device Advanced Weight Redist. System Storage Medium Storage Unit Processor Targeting Computer Hackware Hacking Suite Protection Layered Medium Armor Plating Weapon Particle Cannon Energy Gun Medium Laser Energy Cannon Particle Cannon Ballistic Gun High-powered Shotgun Ballistic Cannon Magnetic Acceleration Cannon Launcher Grenade Launcher Impact Weapon Hammer Slashing Weapon Axe Build | -11 -10 -9 -9 -8 -7 -6 -6 -6 -5 -4 -3 ------- Run | Yrd Mat Mat Min Mat Fac Fac Was Fac Fac Fac Res Slots Evolved 14 | . . 2 . 2 2 2 . . 2 2 2 Power 1 | . . . . . . . . . . . 1 Propulsion 4 | . . 1 . 1 1 . . . 1 . . Utility 9 | . . 1 . 1 1 2 . . 1 2 1 Weapon . | . . . . . . . . . . . . Parts Attached 168 | 6 12 13 5 36 10 13 . 9 18 24 22 Power 12 | 1 1 1 1 2 1 1 . . 1 . 3 Engine 6 | 1 1 1 1 1 1 . . . . . . Core 4 | . . . . 1 . 1 . . 1 . 1 Reactor 2 | . . . . . . . . . . . 2 Propulsion 49 | 2 4 4 . 6 3 5 . 2 4 4 15 Treads 8 | 2 . 3 . 3 . . . . . . . Leg 10 | . 2 . . 3 3 2 . . . . . Wheel 5 | . 2 1 . . . . . . . 2 . Hover 12 | . . . . . . 3 . 2 4 2 1 Flight 14 | . . . . . . . . . . . 14 Utility 66 | 1 2 3 2 17 3 5 . 4 10 15 4 Device 16 | . . 1 . 4 1 1 . . 4 4 1 Storage 4 | 1 . . 1 1 . 1 . . . . . Processor 8 | . 1 . . . 1 1 . . 1 4 . Hackware 6 | . . . . 1 . . . . . 4 1 Protection 32 | . 1 2 1 11 1 2 . 4 5 3 2 Artifact . | . . . . . . . . . . . . Weapon 41 | 2 5 5 2 11 3 2 . 3 3 5 . Energy Gun 7 | 2 2 . 1 2 . . . . . . . Energy Cannon 9 | . . 4 . 3 . . . . 1 1 . Ballistic Gun 11 | . 1 . . 4 3 2 . . 1 . . Ballistic Cannon 6 | . . . . . . . . 3 . 3 . Launcher 3 | . 1 . 1 . . . . . 1 . . Special Weapon . | . . . . . . . . . . . . Impact Weapon 2 | . 1 1 . . . . . . . . . Slashing Weapon 3 | . . . . 2 . . . . . 1 . Piercing Weapon . | . . . . . . . . . . . . Special Melee Weapon . | . . . . . . . . . . . . Unidentified Prototypes 2 | . . . . 1 . . . . . 1 . Parts Lost 84 | . 7 2 1 23 1 1 . 1 9 15 24 Power 7 | . 1 1 . 2 . . . . . 1 2 Propulsion 29 | . 2 . . 7 . . . 1 1 5 13 Utility 36 | . 1 1 . 11 1 1 . . 5 8 8 Weapon 12 | . 3 . 1 3 . . . . 3 1 1 Highest Loss Streak 15 | . 3 1 1 7 1 1 . 1 5 13 15 To Critical Strikes 1 | . . . . . . . . . . . 1 Average Slot Usage (%) 72 | . 77 75 85 61 65 84 86 81 77 62 33 Engine 4 | . 9 9 9 3 4 . . . . . . Core 1 | . . . . . 2 5 6 6 5 2 . Treads 11 | . 12 10 33 14 . . . . . . . Leg 5 | . 6 . . 1 25 22 . . . . . Wheel 1 | . 4 15 . . . . . . . 1 . Hover 4 | . . . . . . 5 20 18 19 12 . Device 3 | . . 5 . 4 2 7 6 6 10 3 3 Storage 5 | . 14 11 11 1 . 4 6 6 5 2 . Processor 3 | . 2 . . . 1 8 13 13 6 19 5 Hackware 1 | . . . . 5 . . . . . 7 7 Protection 10 | . . 2 10 12 15 13 20 17 17 4 . Energy Gun 1 | . 12 . 1 2 . . . . . . . Energy Cannon 5 | . . 19 15 4 . . . . 1 2 . Ballistic Gun 4 | . 2 . . 7 12 13 13 3 2 . . Ballistic Cannon 1 | . . . . . . . . 9 4 3 . Launcher 1 | . 3 . 4 1 . . . . . . . Naked Turns . | . . . . . . . . . . . . Heaviest Build 98 | 14 15 25 98 25 36 46 46 60 69 57 23 Greatest Support 77 | 40 40 66 66 44 68 77 59 59 69 59 30 Greatest Overweight (x) 4 | . 2 1 1 3 . 2 . 1 1 1 4 Average Overweight (x) . | . . . . . . . . . . . . Largest Inventory Capacity 25 | 8 8 8 25 25 5 10 10 10 10 10 5 Average Capacity 10 | 7 8 8 22 5 5 8 10 10 10 7 5 Most Carried 10 | 4 8 8 10 9 5 10 7 10 9 10 5 Average Carried 6 | 2 6 6 8 4 2 6 7 9 6 7 4 Final Capacity 25 | 8 8 8 25 5 5 10 10 10 10 5 5 Final Carried 10 | 4 8 7 9 . 5 7 7 10 9 5 5 Class Distribution -------------------- 90% | Mutant 5% | Hacker-Mutant 3% | Scavenger-Mutant Dominant Class ---------------- Mutant | -10/Materials Mutant | -9/Materials Mutant | -9/Mines Mutant | -8/Materials Mutant | -7/Factory Mutant | -6/Factory Mutant | -6/Waste Mutant | -6/Factory Mutant | -5/Factory Hacker-Mutant | -4/Factory Mutant | -3/Research Resources | -11 -10 -9 -9 -8 -7 -6 -6 -6 -5 -4 -3 ----------- Run | Yrd Mat Mat Min Mat Fac Fac Was Fac Fac Fac Res Matter Collected 2663 | 227 136 143 80 386 196 373 . 204 236 342 340 Remotely . | . . . . . . . . . . . . Salvage Created 3194 | 122 352 237 187 510 196 518 . 152 244 151 525 Parts 218 | 8 22 16 17 31 8 34 . 20 17 8 37 Haulers Intercepted 3 | . . 1 . 1 . 1 . . . . . Recyclers Shooed 4 | . . . . . . 2 . 1 . . 1 Parts Field Recycled . | . . . . . . . . . . . . Retrieved Matter . | . . . . . . . . . . . . Parts Self-Destructed . | . . . . . . . . . . . . Prevented . | . . . . . . . . . . . . Kills | -11 -10 -9 -9 -8 -7 -6 -6 -6 -5 -4 -3 ------- Run | Yrd Mat Mat Min Mat Fac Fac Was Fac Fac Fac Res Combat Hostiles Destroyed 72 | . 10 6 8 12 5 6 . 6 4 4 11 Melee 17 | . 3 1 . 2 . . . . . . 11 Guns 24 | . 3 . . 9 5 6 . 1 . . . Cannons 20 | . . 3 5 1 . . . 5 3 3 . AOE 8 | . 4 . 3 . . . . . 1 . . Classes Destroyed 14 | 2 5 2 1 1 2 . . 1 . . . Worker 4 | . 3 . . 1 . . . . . . . Tunneler 5 | 2 . . 2 . . . . . 1 . . Hauler 3 | . . 1 . 1 . 1 . . . . . Recycler 4 | 1 . . . . . 2 . . . . 1 Operator 9 | . 1 2 . 1 . 1 . 1 1 2 . Watcher 1 | . 1 . . . . . . . . . . Swarmer 26 | . 3 3 6 3 . 4 . . . . 7 Cutter 6 | . . . . . . . . 3 . . 3 Grunt 18 | . 7 2 1 3 2 1 . . . 2 . Duelist 2 | . . . 1 1 . . . . . . . Sentry 8 | . . 1 . 4 1 1 . . 1 . . Hunter 3 | . . . . . 1 . . 2 . . . Programmer 8 | . . . . . 1 . . 1 3 2 1 Heavy 1 | . . . . 1 . . . . . . . Best Kill Streak 7 | 3 6 3 4 2 2 7 . 4 2 2 4 Combat Bots Only 5 | . 4 3 3 2 2 5 . 4 2 2 4 Max Kills in Single Turn 3 | 1 3 1 3 1 1 1 . 1 1 1 1 Gunslinging . | . . . . . . . . . . . . Exploded 3 | . 2 . 3 . . . . . 1 . . Melee 1 | . 1 1 . 1 . . . . . . 1 Uniques/NPCs Destroyed . | . . . . . . . . . . . . Combat | -11 -10 -9 -9 -8 -7 -6 -6 -6 -5 -4 -3 -------- Run | Yrd Mat Mat Min Mat Fac Fac Was Fac Fac Fac Res Hostile Shots Fired 1176 | . 79 70 46 297 49 45 . 87 165 149 189 Missed 380 | . 13 18 8 88 8 20 . 23 59 62 81 Damage Taken 13654 | . 849 558 478 3249 458 363 . 1293 2033 1975 2398 Core 2958 | . 183 73 47 480 40 14 . 145 185 486 1305 Absorbed by Shields 66 | . . . . . 28 20 . 18 . . . Redirected to Shielding 263 | . 52 . . 108 . . . . . . 103 Core Remaining (%) 65 | 100 26 . 70 12 94 . . 81 81 57 . Volleys Fired 235 | 6 29 11 18 62 19 22 . 18 29 21 . Largest 2 | 2 2 2 2 2 2 2 . 2 2 2 . Hottest 138 | 100 100 136 136 138 50 56 . 106 118 118 . Shots Fired 393 | 12 38 22 28 101 39 44 . 35 46 28 . Gun 231 | 12 32 . 3 81 39 44 . 6 14 . . Cannon 152 | . . 22 24 18 . . . 29 31 28 . Launcher 10 | . 6 . 1 2 . . . . 1 . . Special . | . . . . . . . . . . . . Kinetic 243 | . 1 . . 70 39 44 . 35 31 23 . Thermal 127 | 12 31 22 27 16 . . . . 14 5 . Explosive 10 | . 6 . 1 2 . . . . 1 . . Electromagnetic 13 | . . . . 13 . . . . . . . Robot Hit Streak 14 | 4 6 2 6 12 8 12 . 6 13 14 . Robot Miss Streak 6 | 1 1 2 2 2 4 3 . 6 3 1 . Penetration Max 1 | . . . . . . 1 . . . 1 . Secondary Targets 4 | . 1 . . . 1 2 . . . . . Max Gunslinging Chain 1 | . 1 . . . 1 1 . . . . . Shots Hit Robots 334 | 9 34 28 16 81 33 29 . 17 31 25 31 Core Hits 164 | 4 22 7 12 33 16 23 . 12 11 9 15 Critical Kills 1 | . 1 . . . . . . . . . . Critical Parts Destroyed 3 | . 1 1 . . . . . . 1 . . Critical Strikes 15 | 1 2 1 . . . . . 2 2 4 3 Burn 1 | 1 . . . . . . . . . . . Destroy 1 | . . . . . . . . . 1 . . Blast 7 | . . . . . . . . 2 1 4 . Smash 3 | . 2 1 . . . . . . . . . Sever 3 | . . . . . . . . . . . 3 Melee Attacks 75 | . 9 20 . 8 . . . . . . 38 Impact 29 | . 9 20 . . . . . . . . . Slashing 46 | . . . . 8 . . . . . . 38 Piercing . | . . . . . . . . . . . . Sneak Attacks 3 | . 1 . . . . . . . . . 2 Combat Hostiles . | . . . . . . . . . . . . Follow-up Attacks . | . . . . . . . . . . . . Damage Inflicted 8714 | 112 1041 582 459 1590 598 656 . 525 991 1001 1159 Guns 3027 | 112 276 . 21 1097 598 656 . 60 207 . . Cannons 2917 | . . 205 288 306 . . . 380 737 1001 . Explosions 870 | . 570 . 136 32 . . . 85 47 . . Melee 1852 | . 195 377 . 121 . . . . . . 1159 Ramming 48 | . . . 14 34 . . . . . . . Kinetic 4114 | . . . . 944 598 656 . 440 628 848 . Thermal 1699 | 112 276 205 309 243 . . . 85 316 153 . Explosive 785 | . 570 . 136 32 . . . . 47 . . Electromagnetic 216 | . . . . 216 . . . . . . . Impact 572 | . 195 377 . . . . . . . . . Slashing 1280 | . . . . 121 . . . . . . 1159 Piercing . | . . . . . . . . . . . . Highest Corruption 9 | . . . . 9 2 . . . 4 2 5 Average Corruption 2 | . . . . 4 1 . . . 2 1 1 Corruption Purged 7 | . . . . 7 . . . . . . . Corruption Blocked . | . . . . . . . . . . . . Effects 24 | . . . . 10 7 . . . 2 3 2 Message Errors 7 | . . . . 4 . . . . 2 . 1 Matter Fused 6 | . . . . 3 1 . . . . 1 1 Heat Flow Errors 2 | . . . . . 1 . . . . 1 . Energy Discharges 4 | . . . . 3 1 . . . . . . Parts Fused 1 | . . . . . . . . . . 1 . Data Loss (minor) 2 | . . . . . 2 . . . . . . Misfires 1 | . . . . . 1 . . . . . . Alerts 1 | . . . . . 1 . . . . . . Overload Shots . | . . . . . . . . . . . . Overflow Damage 296 | . 41 56 4 19 . . . 10 22 64 80 Projectiles 100 | . . . 1 3 . . . 10 22 64 . Explosions 34 | . 15 . 3 16 . . . . . . . Melee 162 | . 26 56 . . . . . . . . 80 Knockbacks 21 | . 1 1 1 . . . . 9 . 9 . Impact 3 | . 1 1 1 . . . . . . . . Kinetic 15 | . . . . . . . . 6 . 9 . Secondary 3 | . . . . . . . . 3 . . . Self-Inflicted Damage 217 | . 101 . 19 40 . . . 33 24 . . Shots 7 | . 3 . 1 1 . . . 1 1 . . Rammed 18 | . . . 1 17 . . . . . . . Targets Rammed 20 | . . . 2 18 . . . . . . . Kicked . | . . . . . . . . . . . . Crushed 2 | . . . 1 1 . . . . . . . Highest Temperature 474 | 216 474 144 335 108 137 101 . 423 324 469 85 Average Temperature 127 | 109 205 48 125 22 39 39 . 182 167 128 45 Received Heat Transfer 2202 | . 333 138 30 882 73 72 . 18 111 509 36 Effects 23 | . 11 . 1 . . . . 8 . 3 . Shutdowns 5 | . 2 . . . . . . 2 . 1 . Energy Bleed 1 | . . . 1 . . . . . . . . Interference 5 | . 1 . . . . . . 3 . 1 . Matter Decay 2 | . . . . . . . . 2 . . . Short Circuit 1 | . . . . . . . . 1 . . . Damage (minor) 1 | . . . . . . . . . . 1 . Damage (major) 8 | . 8 . . . . . . . . . . Siege Activations . | . . . . . . . . . . . . Robots Corrupted . | . . . . . . . . . . . . Combat Hostiles . | . . . . . . . . . . . . Parts Fried 3 | . 2 . . 1 . . . . . . . Impact Corruptions 6 | . 2 4 . . . . . . . . . Robots Melted 1 | . . . . . . . . . . 1 . Combat Hostiles 1 | . . . . . . . . . . 1 . Parts Melted 10 | 2 1 . 2 2 . . . . . 3 . Heat Transferred 3171 | 407 814 370 568 444 . . . 50 333 185 . Parts Sabotaged . | . . . . . . . . . . . . Parts Stolen . | . . . . . . . . . . . . Parts Stripped . | . . . . . . . . . . . . Power Chain Reactions . | . . . . . . . . . . . . Alert | -11 -10 -9 -9 -8 -7 -6 -6 -6 -5 -4 -3 ------- Run | Yrd Mat Mat Min Mat Fac Fac Was Fac Fac Fac Res Peak Influence 386 | 15 118 234 95 166 117 211 88 316 239 269 386 Initial 149 | . 9 31 21 . 21 56 73 47 149 65 51 Average 83 | 4 48 99 40 63 55 84 75 131 127 153 198 Maximum Alert Level 1 | . . 1 . . . 1 . 1 1 1 1 Low Security (%) 91 | 100 100 96 100 100 100 94 100 71 85 67 43 Level 1 8 | . . 3 . . . 5 . 28 14 32 56 Level 2 . | . . . . . . . . . . . . Level 3 . | . . . . . . . . . . . . Level 4 . | . . . . . . . . . . . . Level 5 . | . . . . . . . . . . . . High Security . | . . . . . . . . . . . . Max Security . | . . . . . . . . . . . . Squads Dispatched 22 | . 3 3 . 5 2 1 . 2 2 . 4 Investigation 3 | . 1 . . . . 1 . . 1 . . Extermination 3 | . . . . . 1 . . . 1 . 1 Reinforcement 13 | . 2 3 . 2 1 . . 2 . . 3 Assault . | . . . . . . . . . . . . Garrison 3 | . . . . 3 . . . . . . . Intercept . | . . . . . . . . . . . . Searches Triggered . | . . . . . . . . . . . . Construction Impeded . | . . . . . . . . . . . . Haulers Reinforced 1 | . . . . . 1 . . . . . . Active Scanning Responses . | . . . . . . . . . . . . Cargo Convoy Interrupts . | . . . . . . . . . . . . Stealth | -11 -10 -9 -9 -8 -7 -6 -6 -6 -5 -4 -3 --------- Run | Yrd Mat Mat Min Mat Fac Fac Was Fac Fac Fac Res Distress Signals 9 | . 1 1 . 1 2 . . . . 4 . Communications Jammed . | . . . . . . . . . . . . Distress Signals . | . . . . . . . . . . . . Times Spotted 195 | . 17 14 9 29 11 12 4 14 19 30 36 Peak Tracking Total 11 | . 4 7 4 6 4 5 3 6 7 9 11 Tactical Retreats 30 | . 1 . . 4 . 2 . 2 7 5 9 Traps | -11 -10 -9 -9 -8 -7 -6 -6 -6 -5 -4 -3 ------- Run | Yrd Mat Mat Min Mat Fac Fac Was Fac Fac Fac Res Traps Triggered 10 | . 1 1 . . . 2 . 1 2 3 . Indirectly . | . . . . . . . . . . . . Trap Hack Attempts . | . . . . . . . . . . . . Triggered . | . . . . . . . . . . . . Disarmed . | . . . . . . . . . . . . Reprogrammed . | . . . . . . . . . . . . Reused . | . . . . . . . . . . . . Traps Extracted . | . . . . . . . . . . . . Installed . | . . . . . . . . . . . . Triggered . | . . . . . . . . . . . . Machines | -11 -10 -9 -9 -8 -7 -6 -6 -6 -5 -4 -3 ---------- Run | Yrd Mat Mat Min Mat Fac Fac Was Fac Fac Fac Res Machines Disabled 5 | . . 2 . . . . . 2 1 . . Max in Single Turn 2 | . . 2 . . . . . 2 1 . . Garrison Access 5 | . . . . . 1 1 . . 2 1 . Machines Repaired . | . . . . . . . . . . . . Machines Dismantled . | . . . . . . . . . . . . Machines Sabotaged . | . . . . . . . . . . . . Overloaded Fab Kills . | . . . . . . . . . . . . Hacking | -11 -10 -9 -9 -8 -7 -6 -6 -6 -5 -4 -3 --------- Run | Yrd Mat Mat Min Mat Fac Fac Was Fac Fac Fac Res Machines Accessed 32 | . 5 1 . 6 5 2 . . 6 3 4 Terminals 26 | . 5 1 . 6 4 1 . . 4 2 3 Fabricators . | . . . . . . . . . . . . Repair Stations . | . . . . . . . . . . . . Recycling Units . | . . . . . . . . . . . . Scanalyzers . | . . . . . . . . . . . . Garrison Access 6 | . . . . . 1 1 . . 2 1 1 Total Hacks 77 | . 13 1 . 16 8 5 . . 17 9 8 Successful 27 | . 5 . . 6 4 1 . . 6 4 1 Failed 50 | . 8 1 . 10 4 4 . . 11 5 7 Catastrophic 9 | . 1 . . . 2 . . . 3 1 2 Database Lockouts . | . . . . . . . . . . . . Manual 67 | . 13 1 . 16 7 4 . . 13 7 6 Terminals 67 | . 13 1 . 16 7 4 . . 13 7 6 Fabricators . | . . . . . . . . . . . . Repair Stations . | . . . . . . . . . . . . Recycling Units . | . . . . . . . . . . . . Scanalyzers . | . . . . . . . . . . . . Garrison Access 10 | . . . . . 1 1 . . 4 2 2 Terminal Hacks 13 | . 4 . . 3 1 . . . 3 1 1 Prototype ID Bank 1 | . . . . 1 . . . . . . . Branch Access Points 1 | . 1 . . . . . . . . . . Terminal Index 2 | . . . . 1 . . . . . 1 . Unreport Threat 8 | . 2 . . 1 1 . . . 3 . 1 Recall Reinforcements 1 | . 1 . . . . . . . . . . Fabricator Hacks . | . . . . . . . . . . . . Repair Station Hacks . | . . . . . . . . . . . . Recycling Unit Hacks . | . . . . . . . . . . . . Scanalyzer . | . . . . . . . . . . . . Garrison Access Hacks 5 | . . . . . 1 1 . . 2 1 . Seal Access 5 | . . . . . 1 1 . . 2 1 . Unauthorized Hacks 9 | . 1 . . 3 2 . . . 1 2 . Terminals 9 | . 1 . . 3 2 . . . 1 2 . Botnet 9 | . 1 . . 3 2 . . . 1 2 . Fabricators . | . . . . . . . . . . . . Repair Stations . | . . . . . . . . . . . . Recycling Units . | . . . . . . . . . . . . Scanalyzers . | . . . . . . . . . . . . Garrison Access . | . . . . . . . . . . . . Data Cores Recovered 4 | . . . . . . 1 . . 1 2 . Used 1 | . . . . . . . . . 1 . . Hacking Detections 30 | . 5 1 . 6 4 1 . . 6 3 4 Full Trace Events 1 | . . . . . . . . . 1 . . Feedback Events . | . . . . . . . . . . . . Feedback Blocked . | . . . . . . . . . . . . Robot Schematics Acquired . | . . . . . . . . . . . . Robots Built . | . . . . . . . . . . . . Authchips . | . . . . . . . . . . . . Time . | . . . . . . . . . . . . Total Robot Build Rating . | . . . . . . . . . . . . Part Schematics Acquired . | . . . . . . . . . . . . Parts Built . | . . . . . . . . . . . . Authchips . | . . . . . . . . . . . . Time . | . . . . . . . . . . . . Total Part Build Rating . | . . . . . . . . . . . . Parts Repaired . | . . . . . . . . . . . . Time . | . . . . . . . . . . . . Parts Recycled . | . . . . . . . . . . . . Recycled Matter . | . . . . . . . . . . . . Retrieved Matter . | . . . . . . . . . . . . Retrieved Components . | . . . . . . . . . . . . Parts Scanalyzed . | . . . . . . . . . . . . Part Schematics Acquired . | . . . . . . . . . . . . Parts Damaged . | . . . . . . . . . . . . Bothacking | -11 -10 -9 -9 -8 -7 -6 -6 -6 -5 -4 -3 ------------ Run | Yrd Mat Mat Min Mat Fac Fac Was Fac Fac Fac Res Used RIF Installer . | . . . . . . . . . . . . Robots Hacked . | . . . . . . . . . . . . Non-combat . | . . . . . . . . . . . . Combat . | . . . . . . . . . . . . Robot Hacks Applied . | . . . . . . . . . . . . Relay Couplers Released . | . . . . . . . . . . . . Fabnet Peak Effective % . | . . . . . . . . . . . . Robots Rewired . | . . . . . . . . . . . . Allies Hacked . | . . . . . . . . . . . . Hacks Repelled . | . . . . . . . . . . . . Allies | -11 -10 -9 -9 -8 -7 -6 -6 -6 -5 -4 -3 -------- Run | Yrd Mat Mat Min Mat Fac Fac Was Fac Fac Fac Res Total Allies 1 | . . . . . . . 1 . . . . Largest Group 1 | . . . . . . . 1 . . . . Highest-Rated Group 31 | . . . . . . . 31 . . . . Highest-Rated Ally 31 | . . . . . . . 31 . . . . Total Orders . | . . . . . . . . . . . . Ally Attacks 10 | . . . . . . . 10 . . . . Total Damage 192 | . . . . . . . 192 . . . . Kills . | . . . . . . . . . . . . Allies Corrupted . | . . . . . . . . . . . . Allies Melted . | . . . . . . . . . . . . Intel | -11 -10 -9 -9 -8 -7 -6 -6 -6 -5 -4 -3 ------- Run | Yrd Mat Mat Min Mat Fac Fac Was Fac Fac Fac Res Robot Analysis Total . | . . . . . . . . . . . . Derelict Logs Recovered . | . . . . . . . . . . . . Drone Launches . | . . . . . . . . . . . . Drone Recoveries . | . . . . . . . . . . . . Exploration | -11 -10 -9 -9 -8 -7 -6 -6 -6 -5 -4 -3 ------------- Run | Yrd Mat Mat Min Mat Fac Fac Was Fac Fac Fac Res Turns Passed 7269 | 111 556 507 1536 1237 760 566 34 324 772 466 400 Spaces Moved 5941 | 55 320 345 693 607 552 505 66 342 1081 719 656 Core 112 | 6 3 . . 14 . . . . . 63 26 Treads 1495 | 49 164 65 693 524 . . . . . . . Legs 976 | . 63 . . 69 552 292 . . . . . Wheels 438 | . 90 280 . . . . . . . 68 . Hover 2366 | . . . . . . 213 66 342 1081 588 76 Flight 554 | . . . . . . . . . . . 554 Fastest Speed 14 | 50 100 100 145 120 120 52 52 52 43 40 14 Average Speed 96 | 148 135 108 211 148 120 91 52 68 48 48 36 Slowest Speed 250 | 160 160 225 225 200 120 170 52 106 106 120 250 Overloaded Moves 24 | . . . . . . . . . . . 24 Propulsion Burnouts . | . . . . . . . . . . . . Robots Hopped 3 | . . . . . . . . . . . 3 Cave-ins Triggered . | . . . . . . . . . . . . Exploration Rate (%) 36 | 4 58 25 103 49 21 16 69 11 30 25 21 Regions Visited 11 Branch Regions 1 Pre-discovered Areas 1 | . . . 1 . . . . . . . . Known Exits Taken 1 | . . . . . . . . . . 1 . Unknown Exits Taken 8 | 1 1 1 1 1 1 . . 1 1 . . Scrap Searched 1 | . . . 1 . . . . . . . . Spaces Dug 3 | . 1 . . 1 . . . . 1 . . Terrain Destroyed 101 | . 37 . 7 18 . 1 . 23 12 3 . Melee 1 | . 1 . . . . . . . . . . Projectile 19 | . . . . 1 . 1 . 8 6 3 . AOE 81 | . 36 . 7 17 . . . 15 6 . . Terrain Rammed . | . . . . . . . . . . . . Walls Destroyed . | . . . . . . . . . . . . Machines Disabled . | . . . . . . . . . . . . Actions | -11 -10 -9 -9 -8 -7 -6 -6 -6 -5 -4 -3 --------- Run | Yrd Mat Mat Min Mat Fac Fac Was Fac Fac Fac Res Total 6914 | 70 390 421 737 816 609 568 65 406 1285 809 738 Wait 297 | . 5 17 15 53 22 8 . 8 134 15 20 Move 5925 | 54 319 344 692 606 551 505 65 341 1080 718 650 Hop 3 | . . . . . . . . . . . 3 Pick Up 71 | 4 11 4 1 11 3 7 . 11 7 10 2 Fast Attach 106 | 6 4 10 4 23 10 7 . 4 5 15 18 Attach 55 | . 8 3 1 13 . 5 . 2 11 9 3 Detach 26 | . 2 2 3 4 3 3 . . 5 3 1 Swap 7 | . . . . . . 1 . 3 2 . 1 Drop 78 | . 3 10 1 18 1 10 . 15 . 18 2 Fire 235 | 6 29 11 18 62 19 22 . 18 29 21 . Melee 75 | . 9 20 . 8 . . . . . . 38 Ram . | . . . . . . . . . . . . Kick . | . . . . . . . . . . . . Crush 20 | . . . 2 18 . . . . . . . Escape Stasis 16 | . . . . . . . . 4 12 . . Rewire . | . . . . . . . . . . . . Trap . | . . . . . . . . . . . . Miscellaneous . | . . . . . . . . . . . . Route ------- -11/Scrapyard -10/Materials (discovered 2 exits: *Mat / Min) -9/Materials -9/Mines (discovered 2 exits: *Mat x2) -8/Materials (discovered 2 exits: *Fac / [*Sto]) -7/Factory -6/Factory -6/Waste -6/Factory -5/Factory -4/Factory -3/Research History --------- Turn | Location | Event 4 | -11/Scrapyard | Discovered new exit (range 14) 112 | -11/Scrapyard | Entered Materials 154 | -10/Materials | Identified exit to Mines 302 | -10/Materials | Build established: Mutant 470 | -10/Materials | Lost 3 parts (1p1n1w) 472 | -10/Materials | Core integrity fell below 50% 661 | -10/Materials | Discovered new exit (range 7) 668 | -10/Materials | Entered another Materials area 668 | -9/Materials | Evolved 2 slots: Propulsion x1, Utility x1 983 | -9/Materials | Discovered new exit (range 13) 1175 | -9/Materials | Entered Mines 1176 | -9/Mines | Learned location of Storage (-8) 1186 | -9/Mines | Met a Derelict bent on vengeance 1343 | -9/Mines | Received a Rocket Launcher from a helpful Derelict 1804 | -9/Mines | Discovered new exit (range 5) 1961 | -9/Mines | Discovered new exit (range 6) 2711 | -9/Mines | Entered Materials 2711 | -8/Materials | Evolved 2 slots: Propulsion x1, Utility x1 2981 | -8/Materials | Lost 3 parts (1n2u) 3182 | -8/Materials | Lost 3 parts (1p1n1u) 3266 | -8/Materials | Discovered new exit (range 16) 3550 | -8/Materials | Garrison activated, responded to threat 3638 | -8/Materials | Lost 3 parts (1p2u) 3807 | -8/Materials | Core integrity fell below 50% 3861 | -8/Materials | Lost 7 parts (2n4u1w) 3898 | -8/Materials | Discovered new exit (range 16) 3937 | -8/Materials | Core integrity fell below 20% 3948 | -8/Materials | Entered Factory 3948 | -7/Factory | Evolved 2 slots: Propulsion x1, Utility x1 4676 | -7/Factory | Discovered new exit (range 4) 4708 | -7/Factory | Entered another Factory area 4708 | -6/Factory | Evolved 2 slots: Utility x2 4712 | -6/Factory | Discovered new exit (range 14) 5274 | -6/Factory | Sucked down chute 5274 | -6/Factory | Entered Waste 5275 | -6/Waste | Met a frightened Derelict 5279 | -6/Waste | Spotted C-40 Crusher 5284 | -6/Waste | Spotted C-40 Crusher 5295 | -6/Waste | Spotted C-40 Crusher 5296 | -6/Waste | Discovered new exit (range 22) 5301 | -6/Waste | Spotted C-40 Crusher 5308 | -6/Waste | Entered Factory 5630 | -6/Factory | Discovered new exit (range 4) 5632 | -6/Factory | Entered another Factory area 5632 | -5/Factory | Evolved 2 slots: Propulsion x1, Utility x1 6060 | -5/Factory | Spotted B-75 Beast 6178 | -5/Factory | Lost 5 parts (1n4u) 6266 | -5/Factory | Discovered new exit (range 14) 6404 | -5/Factory | Entered another Factory area 6404 | -4/Factory | Evolved 2 slots: Utility x2 6469 | -4/Factory | Found Powered Armor 6688 | -4/Factory | Found Prototype Processor 6688 | -4/Factory | Identified Exp. Signal Interpreter 6732 | -4/Factory | Lost 13 parts (1p4n7u1w) 6864 | -4/Factory | Discovered new exit (range 16) 6870 | -4/Factory | Identified exit to Research 6870 | -4/Factory | Entered Research 6870 | -3/Research | Evolved 2 slots: Power x1, Utility x1 7031 | -3/Research | Spotted B-86 Titan 7072 | -3/Research | Lost 15 parts (2p8n5u) 7093 | -3/Research | Core integrity fell below 50% 7131 | -3/Research | Lost 4 parts (2n2u) 7142 | -3/Research | Spotted B-86 Titan 7243 | -3/Research | Core integrity fell below 20% 7270 | -3/Research | Destroyed by Y-72 Warden with Railgun Last Messages --------------- Terminal disabled. Xenon Bombardment Thruster destroyed. Knocked back. Penetrated by Slug. Slug penetrates Wall. Acquired Impulse Thruster. Knocked back. Slug penetrates Wall. Acquired Impulse Thruster. Slug penetrates Wall. Connecting with Terminal... Hacking Suite destroyed. Impulse Thruster destroyed. P-80 Master Imp. Antigrav System severed. P-80 Master destroyed. GBSK286ZC>37CB/,ZF9 ODXSL,HAR K|1MQOF| Axe destroyed. Acquired Imp. Antigrav System. ALERT: Hostiles spotted, dispatching reinforcements to Terminal R018. Map ----- +----------------------------------------------------+ | ?????????????????????????????????????????????????? | | ?????????????????????????????????????????????????? | | ?????????????????????????????????????????????????? | | ?????????????????????????????????????????????????? | | ?????????????????????????????????????????????????? | | ?????????????????????????????????????????????????? | | ?????????????????????????????????????????????????? | | ?????????????????????????????????????????????????? | | ?????????????????????????????????????????????????? | | ?????????????????????????????????????????????????? | | ?????????????????????????????????????????????????? | | ?????????????????????????????????????????????????? | | ???????????????????????#?????????????????????????? | | ??????????????????????? ?????????????????????????? | | ??????????????????????# ?????????????????????????? | | ??????????????????????# #????????????????????????? | | ??????????????????????# #????????????????????????? | | ??????????????????????# #????????????????????????? | | ??????????????????????# #????????????????????????? | | ??????????????????????# #????????????????????????? | | ????#+#?######????????# #????????????????????????? | | ????# #? #????????# #????????????????????????? | | ????# # #??????### ###??????????????????????? | | ##### # ######?# #??????????????????????? | | + ## ### ####???????????????????? | | ##### # ## @ +???????????????????? | | ????# # ! ! ## ###k Y ####???????????????????? | | ????# #?######## ##?# #??????????????????????? | | ????# #????????# #??#######??????????????????????? | | ##??# #????????# #???????????????????????????????? | | #??#[#????????# ########????????????????????????? | | ####=########## # #????????????????????????? | | !=%! + #????????????????????????? | | ###### # #????????????????????????? | | #????# # == #????????????????????????? | | ##??? + #? == #????????????????????????? | | ??? ############? == ]#????????????????????????? | | ?# ??????????????### #????????????????????????? | | ?# ???????????????????#????????????????????????? | | ?###?????????????????????????????????????????????? | | ?????????????????????????????????????????????????? | | | | | | | | | | | | | | | | | | | +----------------------------------------------------+ Best States ------------- Heat Dissipation 71 Energy Generation 21 Energy Capacity 310 Matter Stores 300 Matter Capacity 300 Sight Range 22 Terrain Scan Range 16 Terrain Scan Density 210 Additional Mass Support 9 Armor Coverage 900 Propulsion Shielding 66 Evasion (%) 65 Targeting Accuracy 23 Recoil Reduction 3 Offensive Hacking 10 Defensive Hacking 20 Item Schematics ----------------- None Robot Schematics ------------------ None Fabricated ------------ Nothing Alien Tech Used ----------------- None Achievements -------------- Can't Catch Me Dangerous Findings Dynamic Key Please Form A Line Challenges ------------ None Game ------ Seed SapperLayeredMonowheel Manual? 0 Play Time 01:20:15 Cumulative 8.0 hours Start 2024.04.03 @ 21:11:08 End 2024.04.03 @ 22:28:51 Sessions 1 Manual Loads 0 Difficulty Rogue Special Mode None Game No. 16 Rogue 16 Adventurer 0 Explorer 0 Win Type - Total 0 Types 0/0/0/0/0/0/0/0/0 Lore% 6 Gallery% 18 Achievement% 17 Wizard Run 0 Options --------- Layout 1 ASCII 0 Keyboard 1 Movement Numpad Keybinds 0 Fullscreen 1 Font 32/SmallcapsGlow Map View 50x35 Zoom Use 0% Tactical HUD 0 Map Filters NONE Filters NONE Steam 1 RUN: 203d6030-d646-4ab1-a598-89ff9f3f833e